fUSD/lending_fUSD_20260108
["ID","MTS","AMOUNT","RATE_DAILY","PERIOD"]
[401034593,1767890617544,-210.72885,0.00043564,60]
[401034594,1767890617571,-210.72885,0.00043564,60]
[401034595,1767890617597,-788.05,0.00043564,120]
[401034596,1767890617623,-150.0,0.00043564,30]
[401034597,1767890617649,-200.0,0.00043564,30]
[401034598,1767890617676,-775.36422772,0.00043564,60]
[401034599,1767890617703,-221.83679,0.00043564,120]
[401034600,1767890617730,-2669.12503557,0.00043564,120]
[401034601,1767890617758,-13188.72,0.00043564,30]
[401034602,1767890617785,-41307.59008856,0.00043564,30]
[401034603,1767890617817,-102693.0,0.00043564,30]
[401034604,1767890617848,-998689.23100495,0.00043564,30]
[401034605,1767890628144,-501310.76899505,0.00043564,30]
[401034606,1767890628179,-333354.95,0.00043564,30]
[401034607,1767890628211,-67417.60149449,0.00043564,30]
[401034608,1767890628244,-147658.78032929,0.00043564,30]
[401034609,1767890628613,-21087.71852202,0.00043564,120]
[401034610,1767890628653,-8899.08357348,0.00043564,30]
[401034611,1767890628685,-9567.74252284,0.00043564,30]
[401034612,1767890628715,-4541.13096357,0.00043564,30]
[401034613,1767890628744,-200.16210692,0.00043564,30]
[401034614,1767890628774,-5862.03478752,0.00043564,30]
[401034615,1767890628806,-306528.08485193,0.00043564,30]
[401034616,1767890628839,-24656.62173512,0.00043564,30]
[401034617,1767890628869,-5730.03515538,0.00043564,30]
[401034618,1767890628902,-21189.36951876,0.00043564,30]
[401034619,1767890628932,-7342.27457808,0.00043564,30]
[401034620,1767890628960,-33949.99918589,0.00043564,30]
[401034621,1767890628990,-20335.82292436,0.00043564,30]
[401034622,1767890629018,-17857.17954306,0.00043564,30]
[401034623,1767890629047,-17789.15468755,0.00043564,30]
[401034624,1767890629079,-89768.17200371,0.00043564,30]
[401034625,1767890629110,-6654.57885496,0.00043564,30]
[401034626,1767890629140,-106586.74017417,0.00043564,30]
[401034627,1767890629170,-30952.15676685,0.00043564,30]
[401034628,1767890629199,-11001.96586714,0.00043564,30]
[401034629,1767890629227,-491059.65992687,0.00043564,30]
[401034630,1767890629256,-26217.45527559,0.00043564,30]
[401034631,1767890629286,-63578.03236958,0.00043564,30]
[401034632,1767890629320,-675275.31698458,0.00043564,30]
[401034633,1767890629351,-999.999999,0.00043564,90]
[401034634,1767890629380,-652.70959096,0.00043564,30]
[401034635,1767890629409,-100000.0,0.00043564,30]
[401034636,1767890629442,-50000.0,0.00043564,40]
[401034637,1767890629472,-50000.0,0.00043564,41]
[401034638,1767890629502,-1890.0,0.00043564,120]
[401034639,1767890629531,-1740084.69671128,0.00043564,120]
[401034640,1767890641955,-3231975.75328872,0.00043564,120]
[401034641,1767890641983,-506.0,0.00043564,120]
[401034642,1767890642010,-992.69,0.00043564,120]
[401034643,1767890642038,-448.9962335,0.00043564,120]
[401034644,1767890642066,-1894.3853459,0.00043564,60]
[401034645,1767890642093,-94704.45761193,0.00043564,90]
[401034646,1767890642120,-808.15222569,0.00043564,120]
[401034647,1767890642148,-753.03543019,0.00043564,120]
[401034648,1767890642174,-1500000.0,0.00043564,30]
[401034649,1767890642202,-167916.52986407,0.00043564,30]
[401034650,1767890647624,-1332083.47013593,0.00043564,30]
[401034651,1767890647659,-2520.83690372,0.00043564,120]
[401034652,1767890647690,-5785.8583511,0.00043564,120]
[401034653,1767890647719,-20000.0,0.00043564,120]
[401034654,1767890647746,-17000.0,0.00043564,120]
[401034655,1767890647774,-9095.71368548,0.00043564,120]
[401034656,1767890647802,-1008.448806,0.00043564,120]
[401034657,1767890647831,-160.32719569,0.00043564,120]
[401034658,1767890647859,-744685.5311982,0.00043564,30]
[401034659,1767890647889,-491579.00207951,0.00043564,30]
[401034660,1767890647926,-603639.0,0.00043564,60]
[401034661,1767890647956,-5050.0,0.00043564,37]
[401034662,1767890647987,-272777.32,0.00043564,30]
[401034663,1767890648020,-50000.0,0.00043564,42]
[401034664,1767890648052,-50000.0,0.00043564,43]
[401034665,1767890648086,-50000.0,0.00043564,44]
[401034666,1767890648117,-50000.0,0.00043564,45]
[401034667,1767890648148,-6342.96972387,0.00043564,30]
[401034668,1767890648182,-2000.0,0.00043564,120]
[401034669,1767890648215,-2020.00299798,0.00043564,120]
[401034670,1767890648247,-1531.07773021,0.00043564,120]
[401034671,1767890648279,-5343.77476401,0.00043564,120]
[401034672,1767890648310,-1100.0,0.00043564,30]
[401034673,1767890648342,-1100.0,0.00043564,30]
[401034674,1767890648374,-1100.0,0.00043564,30]
[401034675,1767890648407,-1100.0,0.00043564,30]
[401034676,1767890648440,-1100.0,0.00043564,30]
[401034677,1767890648471,-400.0,0.00043564,30]
[401034678,1767890648501,-400.0,0.00043564,30]
[401034679,1767890648529,-400.0,0.00043564,30]
[401034680,1767890648559,-400.0,0.00043564,30]
[401034681,1767890648587,-400.0,0.00043564,30]
[401034682,1767890648616,-400.0,0.00043564,30]
[401034683,1767890648645,-400.0,0.00043564,30]
[401034684,1767890648676,-400.0,0.00043564,30]
[401034685,1767890648707,-400.0,0.00043564,30]
[401034686,1767890648736,-400.0,0.00043564,30]
[401034687,1767890648764,-400.0,0.00043564,30]
[401034688,1767890648792,-400.0,0.00043564,30]
[401034689,1767890648820,-400.0,0.00043564,30]
[401034690,1767890648852,-400.0,0.00043564,30]
[401034691,1767890648883,-400.0,0.00043564,30]
[401034692,1767890648917,-400.0,0.00043564,30]
[401034693,1767890648947,-408.00105026,0.00043564,30]
[401034694,1767890648975,-1100.0,0.00043564,30]
[401034695,1767890649005,-6311.0,0.00043564,120]
[401034696,1767890649035,-1100.0,0.00043564,30]
[401034697,1767890649064,-194.36502316,0.00043564,120]
[401034698,1767890649092,-150.0,0.00043564,30]
[401034699,1767890649120,-15000.0,0.00043564,33]
[401034700,1767890649148,-4963.9847774,0.00043564,120]
[401034701,1767890649176,-1100.0,0.00043564,30]
[401034702,1767890649205,-164.4226828,0.00043564,30]
[401034703,1767890649234,-181.17972786,0.00043564,120]
[401034704,1767890649262,-5000.0,0.00043564,30]
[401034705,1767890649290,-500.0,0.00043564,120]
[401034706,1767890649319,-500.0,0.00043564,120]
[401034707,1767890649348,-17114.65765054,0.00043564,120]
[401034708,1767890649387,-1100.0,0.00043564,30]
[401034709,1767890649419,-2000.0,0.00043564,120]
[401034710,1767890649449,-2096.96140248,0.00043564,120]
[401034711,1767890649478,-500.0,0.00043564,120]
[401034712,1767890649506,-500.0,0.00043564,120]
[401034713,1767890649535,-500.0,0.00043564,120]
[401034714,1767890649563,-500.0,0.00043564,120]
[401034715,1767890649591,-500.0,0.00043564,120]
[401034716,1767890649619,-500.0,0.00043564,120]
[401034717,1767890649646,-500.0,0.00043564,120]
[401034718,1767890649674,-327.16528548,0.00043564,120]
[401034719,1767890649701,-179.0,0.00043564,30]
[401034720,1767890649729,-225.69720042,0.00043564,120]
[401034721,1767890649756,-5077.35273376,0.00043564,120]
[401034722,1767890649784,-849.23254733,0.00043564,30]
[401034723,1767890650463,849.33254733,0.00043564,30]
[401034724,1767890651366,567.0,0.00043564,30]
[401034725,1767890670713,-510.61,0.00043564,120]
[401034967,1767890971131,-236.0,0.00010495,2]
[401034968,1767890971152,-165.76188916,0.00010495,2]
[401034969,1767890971172,-250.0,0.00010495,2]
[401034970,1767890971193,-348.05166929,0.00011444,2]
[401034971,1767890971213,-1200.0,0.00011544,2]
[401034972,1767890971238,-1200.0,0.00011544,2]
[401034973,1767890971259,-165.76188916,0.00011544,2]
[401034974,1767890971282,-195.0,0.00011545,2]
[401034975,1767890971304,-188.94617776,0.00011545,2]
[401034976,1767890971324,-195.0,0.00011545,2]
[401034977,1767890971346,-195.0,0.00011545,2]
[401034978,1767890971366,-132.52397254,0.00011545,2]
[401034979,1767890986352,209.9465,0.00010395,2]
[401034999,1767891031982,-300.0,0.00011544,2]
[401035000,1767891031992,-1200.0,0.00011544,2]
[401035001,1767891032003,-244.0,0.00011544,2]
[401035002,1767891032012,-271.3,0.00011544,2]
[401035004,1767891032021,-167.47602746,0.00011545,2]
[401035005,1767891032030,-195.0,0.00011545,2]
[401035006,1767891032040,-250.0,0.00011545,2]
[401035007,1767891032051,-300.0,0.00011545,2]
[401035008,1767891032060,-300.0,0.00011545,2]
[401035009,1767891032071,-300.0,0.00011545,2]
[401035010,1767891032082,-317.74732338,0.00011545,2]
[401035011,1767891032091,-195.0,0.00011545,2]
[401035012,1767891032102,-250.0,0.00011545,2]
[401035013,1767891032112,-300.0,0.00011545,2]
[401035014,1767891032123,-185.90849551,0.00011545,2]
[401035015,1767891032132,-300.0,0.00011545,2]
[401035016,1767891032141,-300.0,0.00011545,2]
[401035017,1767891032150,-195.0,0.00011775,2]
[401035018,1767891032160,-271.3,0.00011818,2]
[401035019,1767891032169,-348.05166927,0.00012005,2]
[401035020,1767891032178,-271.3,0.00012092,2]
[401035021,1767891032187,-195.0,0.00012122,2]
[401035022,1767891032196,-1500.0,0.0001229,2]
[401035023,1767891032206,-271.3,0.00012366,2]
[401035024,1767891032215,-1783.89937804,0.00012382,2]
[401035025,1767891032224,-150.0,0.00012391,2]
[401035026,1767891032233,-542.77065189,0.00012392,2]
[401035027,1767891032242,-500.0,0.00012392,2]
[401035057,1767891032561,-500.0,0.00012392,2]
[401035058,1767891032570,-500.0,0.00012392,2]
[401035059,1767891032579,-231.40810775,0.00012392,2]
[401035060,1767891032588,-500.61421208,0.00012392,2]
[401035061,1767891032598,-498.99148565,0.00012392,2]
[401035062,1767891032607,-500.0,0.00012392,2]
[401035063,1767891032616,-500.0,0.00012392,2]
[401035064,1767891032625,-500.0,0.00012392,2]
[401035065,1767891032634,-473.26906906,0.00012392,2]
[401035066,1767891032643,-500.0,0.00012392,2]
[401035067,1767891032652,-500.0,0.00012392,2]
[401035068,1767891032662,-250.0,0.00012392,2]
[401035069,1767891032671,-503.28319711,0.00012392,2]
[401035070,1767891032680,-344.26471226,0.00012392,2]
[401035071,1767891032689,-1960.22763795,0.00012392,2]
[401035072,1767891032702,-1960.22763795,0.00012392,2]
[401035073,1767891032711,-1960.22763795,0.00012392,2]
[401035074,1767891032721,-1960.22763795,0.00012392,2]
[401035075,1767891032731,-1960.22763795,0.00012392,2]
[401035076,1767891032740,-1960.22763795,0.00012392,2]
[401035077,1767891032751,-1960.22763795,0.00012392,2]
[401035078,1767891032761,-1960.22763795,0.00012392,2]
[401035079,1767891032770,-1960.22763795,0.00012392,2]
[401035080,1767891032779,-1960.22763795,0.00012392,2]
[401035081,1767891032789,-1960.22763795,0.00012392,2]
[401035082,1767891032799,-1960.22763795,0.00012392,2]
[401035083,1767891032809,-1960.22763795,0.00012392,2]
[401035084,1767891032818,-1960.22763795,0.00012392,2]
[401035085,1767891032827,-1960.22763795,0.00012392,2]
[401035086,1767891032837,-1960.22763795,0.00012392,2]
[401035087,1767891032846,-1960.22763795,0.00012392,2]
[401035088,1767891032855,-1960.22763795,0.00012392,2]
[401035089,1767891032865,-1960.22763795,0.00012392,2]
[401035090,1767891032875,-1960.22763795,0.00012392,2]
[401035091,1767891032884,-1960.22763795,0.00012392,2]
[401035092,1767891032893,-1960.22763795,0.00012392,2]
[401035093,1767891032907,-1960.22763795,0.00012392,2]
[401035094,1767891032916,-1261.55148801,0.00012392,2]
[401035095,1767891032931,-698.67614994,0.00012392,2]
[401035096,1767891032940,-1960.22763795,0.00012392,2]
[401035097,1767891032949,-1960.22763795,0.00012392,2]
[401035098,1767891032958,-1960.22763795,0.00012392,2]
[401035099,1767891032968,-1960.22763795,0.00012392,2]
[401035100,1767891032977,-1960.22763795,0.00012392,2]
[401035101,1767891032986,-1960.22763795,0.00012392,2]
[401035102,1767891032996,-1960.22763795,0.00012392,2]
[401035103,1767891033006,-1960.22763795,0.00012392,2]
[401035104,1767891033016,-1960.22763795,0.00012392,2]
[401035105,1767891033026,-1960.22763795,0.00012392,2]
[401035106,1767891033036,-1960.22763795,0.00012392,2]
[401035107,1767891033046,-1960.22763795,0.00012392,2]
[401035108,1767891033056,-1960.22763795,0.00012392,2]
[401035109,1767891033066,-1960.22763795,0.00012392,2]
[401035110,1767891033076,-1960.22763795,0.00012392,2]
[401035111,1767891033085,-1960.22763795,0.00012392,2]
[401035112,1767891033098,-1960.22763795,0.00012392,2]
[401035113,1767891033108,-1960.22763795,0.00012392,2]
[401035114,1767891033117,-1960.22763795,0.00012392,2]
[401035115,1767891033127,-1960.22763795,0.00012392,2]
[401035116,1767891033137,-1960.22763795,0.00012392,2]
[401035117,1767891033146,-1960.22763795,0.00012392,2]
[401035118,1767891033156,-1960.22763795,0.00012392,2]
[401035119,1767891033166,-1960.22763795,0.00012392,2]
[401035120,1767891033176,-1960.22763795,0.00012392,2]
[401035121,1767891033185,-1960.22763795,0.00012392,2]
[401035122,1767891033195,-1960.22763795,0.00012392,2]
[401035123,1767891033205,-500.0,0.00012392,2]
[401035124,1767891033214,-619.56045311,0.00012392,2]
[401035125,1767891033223,-1932.32161949,0.00012392,2]
[401035126,1767891033233,-1932.32161949,0.00012392,2]
[401035127,1767891033243,-1932.32161949,0.00012392,2]
[401035128,1767891033253,-1932.32161949,0.00012392,2]
[401035129,1767891033262,-1932.32161949,0.00012392,2]
[401035130,1767891033272,-1932.32161949,0.00012392,2]
[401035131,1767891033282,-1932.32161949,0.00012392,2]
[401035132,1767891033292,-1932.32161949,0.00012392,2]
[401035133,1767891033304,-1932.32161949,0.00012392,2]
[401035134,1767891033313,-1932.32161949,0.00012392,2]
[401035135,1767891033323,-1932.32161949,0.00012392,2]
[401035136,1767891033332,-1932.32161949,0.00012392,2]
[401035137,1767891033343,-1932.32161949,0.00012392,2]
[401035138,1767891033352,-1932.32161949,0.00012392,2]
[401035139,1767891033362,-1932.32161949,0.00012392,2]
[401035140,1767891033372,-1932.32161949,0.00012392,2]
[401035141,1767891033381,-1932.32161949,0.00012392,2]
[401035142,1767891033391,-1932.32161949,0.00012392,2]
[401035143,1767891033401,-1932.32161949,0.00012392,2]
[401035144,1767891033411,-1932.32161949,0.00012392,2]
[401035145,1767891033420,-1932.32161949,0.00012392,2]
[401035146,1767891033430,-1932.32161949,0.00012392,2]
[401035147,1767891033440,-1932.32161949,0.00012392,2]
[401035148,1767891033449,-1932.32161949,0.00012392,2]
[401035149,1767891033459,-1932.32161949,0.00012392,2]
[401035150,1767891033469,-1932.32161949,0.00012392,2]
[401035151,1767891033477,-1932.32161949,0.00012392,2]
[401035152,1767891033487,-1932.32161949,0.00012392,2]
[401035153,1767891033497,-1932.32161949,0.00012392,2]
[401035154,1767891033508,-1932.32161949,0.00012392,2]
[401035155,1767891033517,-1932.32161949,0.00012392,2]
[401035156,1767891033527,-1932.32161949,0.00012392,2]
[401035157,1767891033536,-500.0,0.00012392,2]
[401035158,1767891033546,-150.99,0.00012393,2]
[401035159,1767891033555,-9326.17654768,0.00012393,2]
[401035160,1767891033568,-673.81345232,0.00012393,2]
[401035161,1767891033577,-1336.36,0.00012393,2]
[401035162,1767891033587,-999.99,0.00012393,2]
[401035163,1767891033597,-150.0,0.00012447,2]
[401035164,1767891033606,-348.05166927,0.00012565,2]
[401035165,1767891033616,-271.34073216,0.0001264,2]
[401035166,1767891033626,-345.00613855,0.00012664,2]
[401035167,1767891033635,-328.97427128,0.00012664,2]
[401035168,1767891033646,-387.0993926,0.00012664,2]
[401035169,1767891033655,-500.0,0.00012664,2]
[401035170,1767891033665,-500.0,0.00012664,2]
[401035171,1767891033681,-266.08670036,0.00012664,2]
[401035172,1767891033695,-3932.14,0.00012667,2]
[401035173,1767891033704,-1680.0,0.00012678,2]
[401035174,1767891033714,-420.0,0.00012678,2]
[401035175,1767891033724,-1680.0,0.00012698,2]
[401035176,1767891033734,-195.0,0.00012699,2]
[401035177,1767891033743,-250.0,0.00012699,2]
[401035178,1767891033754,-164.25854781,0.00012857,2]
[401035179,1767891033764,-186.0,0.00013111,2]
[401035180,1767891033774,-233.0,0.00013336,2]
[401035181,1767891033784,-11007.72158638,0.00013341,2]
[401035182,1767891033795,-1452.78,0.00013348,2]
[401035183,1767891033805,-1476.79,0.00013442,2]
[401035184,1767891033815,-255.0,0.00013482,2]
[401035185,1767891033825,-1000.0,0.00013485,2]
[401035186,1767891033835,-1488.934,0.00013588,2]
[401035187,1767891033844,-171.946,0.00013588,2]
[401035188,1767891033855,-305.29924855,0.00013588,2]
[401035189,1767891033864,-3009.1070108,0.00013588,2]
[401035190,1767891033874,-438.36786363,0.00013588,2]
[401035191,1767891033884,-500.0,0.0001359,2]
[401035192,1767891033894,-237.03265591,0.0001359,2]
[401035193,1767891033904,-200.0,0.0001359,2]
[401035194,1767891033913,-157.35456451,0.0001359,2]
[401035195,1767891033925,-1927.8796704,0.00013598,2]
[401035196,1767891033962,-782.76857672,0.00013598,2]
[401035197,1767891033974,-459.25366329,0.00013598,2]
[401035198,1767891033990,-426.83436047,0.00013598,2]
[401035199,1767891034008,-4201.65523545,0.00013598,2]
[401035200,1767891034020,-5183.52818154,0.00013598,2]
[401035201,1767891034031,-1349.61288932,0.00013598,2]
[401035202,1767891034043,-1863.64,0.00013598,2]
[401035203,1767891034079,-1422.63899574,0.00013598,2]
[401035204,1767891034091,-1053.69497501,0.00013598,2]
[401035205,1767891034102,-452.25,0.00013598,2]
[401035206,1767891034117,-890.62202634,0.00013598,2]
[401035207,1767891038145,-317.82762982,0.00013598,2]
[401035208,1767891038157,-364.85702623,0.00013598,2]
[401035209,1767891038190,-130.48723002,0.00013598,2]
[401035210,1767891038200,-19714.75405043,0.00013598,2]
[401035211,1767891038212,-519.56205219,0.00013598,2]
[401035212,1767891038245,-13861.72199951,0.00013598,2]
[401035213,1767891038261,-5778.20325848,0.00013598,2]
[401035214,1767891038351,-78078.28851271,0.00013598,2]
[401035215,1767891038363,-43248.59306369,0.00013598,2]
[401035390,1767891040247,-763.45759774,0.00013598,2]
[401035393,1767891040260,-15390.49999992,0.00013598,2]
[401035397,1767891040299,-629.67317731,0.00013598,2]
[401035399,1767891040311,-262.45855165,0.00013598,2]
[401035401,1767891040321,-3175.0917997,0.00013598,2]
[401035403,1767891040332,-641.07,0.00013598,2]
[401035410,1767891040386,-396.71618048,0.00013598,2]
[401035412,1767891040401,-797525.53118191,0.00013598,2]
[401035414,1767891040411,-500.0,0.00013698,2]
[401035416,1767891040420,-500.0,0.00013698,2]
[401035418,1767891040429,-500.0,0.00013698,2]
[401035420,1767891040439,-500.0,0.00013698,2]
[401035422,1767891040448,-500.0,0.00013698,2]
[401035424,1767891040459,-500.0,0.00013698,2]
[401035426,1767891040468,-500.0,0.00013698,2]
[401035428,1767891040478,-500.0,0.00013698,2]
[401035430,1767891040488,-500.0,0.00013698,2]
[401035432,1767891040498,-500.0,0.00013698,2]
[401035434,1767891040510,-500.0,0.00013698,2]
[401035436,1767891040519,-500.0,0.00013698,2]
[401035438,1767891040529,-500.0,0.00013698,2]
[401035440,1767891040540,-500.0,0.00013698,2]
[401035442,1767891040550,-500.0,0.00013698,2]
[401035444,1767891040560,-200.0,0.00013698,2]
[401035446,1767891040571,-500.0,0.00013698,2]
[401035448,1767891040580,-500.0,0.00013698,2]
[401035450,1767891040590,-500.0,0.00013698,2]
[401035452,1767891040599,-500.0,0.00013698,2]
[401035454,1767891040608,-500.0,0.00013698,2]
[401035456,1767891040617,-500.0,0.00013698,2]
[401035458,1767891040628,-500.0,0.00013698,2]
[401035460,1767891040637,-525.03126034,0.00013698,2]
[401035462,1767891040646,-968.33,0.00013698,2]
[401035464,1767891040655,-968.33,0.00013698,2]
[401035466,1767891040665,-968.33,0.00013698,2]
[401035468,1767891040674,-968.33,0.00013698,2]
[401035470,1767891040684,-500.0,0.00013698,2]
[401035472,1767891040693,-518.56533718,0.00013698,2]
[401035474,1767891040701,-500.0,0.00013698,2]
[401035476,1767891040710,-500.0,0.00013698,2]
[401035477,1767891040720,-500.0,0.00013698,2]
[401035480,1767891040730,-500.0,0.00013698,2]
[401035482,1767891040739,-500.0,0.00013698,2]
[401035484,1767891040748,-500.0,0.00013698,2]
[401035486,1767891040761,-500.0,0.00013698,2]
[401035487,1767891040770,-500.0,0.00013698,2]
[401035489,1767891040780,-500.0,0.00013698,2]
[401035491,1767891040789,-500.0,0.00013698,2]
[401035493,1767891040799,-500.0,0.00013698,2]
[401035495,1767891040807,-500.0,0.00013698,2]
[401035497,1767891040817,-500.0,0.00013698,2]
[401035499,1767891040826,-500.0,0.00013698,2]
[401035501,1767891040836,-500.0,0.00013698,2]
[401035503,1767891040845,-500.0,0.00013698,2]
[401035505,1767891040855,-500.0,0.00013698,2]
[401035507,1767891040864,-527.81324663,0.00013698,2]
[401035509,1767891040873,-500.0,0.00013698,2]
[401035511,1767891040882,-500.0,0.00013698,2]
[401035513,1767891040891,-500.0,0.00013698,2]
[401035515,1767891040899,-500.0,0.00013698,2]
[401035517,1767891040909,-500.0,0.00013698,2]
[401035519,1767891040918,-500.0,0.00013698,2]
[401035521,1767891040930,-523.33,0.00013698,2]
[401035523,1767891040940,-523.33,0.00013698,2]
[401035525,1767891040949,-523.33,0.00013698,2]
[401035527,1767891040958,-523.33,0.00013698,2]
[401035529,1767891040967,-523.33,0.00013698,2]
[401035531,1767891040977,-500.0,0.00013698,2]
[401035533,1767891040986,-500.0,0.00013698,2]
[401035535,1767891040995,-500.0,0.00013698,2]
[401035538,1767891041008,-500.0,0.00013698,2]
[401035540,1767891041017,-500.0,0.00013698,2]
[401035541,1767891041029,-500.0,0.00013698,2]
[401035543,1767891041038,-500.0,0.00013698,2]
[401035545,1767891041047,-500.0,0.00013698,2]
[401035547,1767891041055,-500.0,0.00013698,2]
[401035549,1767891041065,-500.0,0.00013698,2]
[401035551,1767891041074,-621.72362606,0.00013698,2]
[401035553,1767891041083,-502.28702111,0.00013698,2]
[401035555,1767891041093,-500.0,0.00013698,2]
[401035557,1767891041103,-500.0,0.00013698,2]
[401035559,1767891041112,-500.0,0.00013698,2]
[401035561,1767891041121,-500.0,0.00013698,2]
[401035563,1767891041130,-500.0,0.00013698,2]
[401035565,1767891041139,-500.0,0.00013698,2]
[401035567,1767891041148,-500.0,0.00013698,2]
[401035569,1767891041157,-500.0,0.00013698,2]
[401035571,1767891041167,-500.0,0.00013698,2]
[401035573,1767891041176,-500.0,0.00013698,2]
[401035575,1767891041185,-500.0,0.00013698,2]
[401035577,1767891041195,-500.0,0.00013698,2]
[401035579,1767891041203,-500.0,0.00013698,2]
[401035581,1767891041212,-500.0,0.00013698,2]
[401035583,1767891041222,-329.57,0.00013699,2]
[401035585,1767891041231,-709.3,0.00013699,2]
[401035587,1767891041240,-11007.72158634,0.00013848,2]
[401035589,1767891041250,-250.0,0.00013867,2]
[401035591,1767891041260,-968.33,0.00013894,2]
[401035593,1767891041269,-500.0,0.00013894,2]
[401035595,1767891041278,-516.18277591,0.00013894,2]
[401035597,1767891041287,-500.0,0.00013894,2]
[401035599,1767891041297,-222.0,0.00013924,2]
[401035601,1767891041306,-587.0,0.00013924,2]
[401035603,1767891041315,-2351.0,0.00013968,2]
[401035605,1767891041324,-3009.10701074,0.00014067,2]
[401035607,1767891041333,-500.0,0.00014138,2]
[401035609,1767891041342,-305.29924853,0.00014307,2]
[401035611,1767891041351,-11007.72158634,0.00014354,2]
[401035613,1767891041360,-3009.10701074,0.00014546,2]
[401035615,1767891041370,-433.0,0.00014672,2]
[401035617,1767891041379,-500.0,0.00014763,2]
[401035619,1767891041388,-500.0,0.00014763,2]
[401035649,1767891041660,-500.0,0.00014763,2]
[401035651,1767891041670,-500.0,0.00014763,2]
[401035653,1767891041679,-500.0,0.00014763,2]
[401035655,1767891041688,-500.0,0.00014763,2]
[401035657,1767891041697,-519.74194078,0.00014763,2]
[401035659,1767891041706,-500.0,0.00014763,2]
[401035661,1767891041715,-501.08291115,0.00014763,2]
[401035663,1767891041724,-500.0,0.00014763,2]
[401035665,1767891041733,-225.04435093,0.00014763,2]
[401035667,1767891041742,-500.0,0.00014763,2]
[401035669,1767891041751,-500.0,0.00014763,2]
[401035671,1767891041762,-500.0,0.00014763,2]
[401035673,1767891041771,-500.0,0.00014763,2]
[401035675,1767891041780,-489.61533507,0.00014763,2]
[401035677,1767891041789,-500.51555347,0.00014763,2]
[401035679,1767891041798,-500.0,0.00014763,2]
[401035680,1767891041806,-501.54454633,0.00014763,2]
[401035683,1767891041816,-500.0,0.00014763,2]
[401035684,1767891041826,-11007.72158634,0.00014861,2]
[401035686,1767891041834,-305.29924853,0.00015025,2]
[401035688,1767891041844,-3009.10701074,0.00015025,2]
[401035690,1767891041853,-166.66,0.00015085,2]
[401035692,1767891041862,-1000.0,0.0001517,2]
[401035694,1767891041871,-823.0,0.00015293,2]
[401035696,1767891041880,-802.24106746,0.0001531,2]
[401035698,1767891041890,-1000.0,0.0001531,2]
[401035700,1767891041899,-799.73155764,0.0001531,2]
[401035702,1767891041908,-1000.0,0.0001531,2]
[401035704,1767891041917,-1000.0,0.0001531,2]
[401035706,1767891041927,-879.40330386,0.0001531,2]
[401035708,1767891041940,-633.20600999,0.0001531,2]
[401035710,1767891041949,-3292.0,0.00015364,2]
[401035712,1767891041959,-11007.72158634,0.00015367,2]
[401035714,1767891041967,-166.66,0.00015402,2]
[401035716,1767891041978,-3009.10701074,0.00015504,2]
[401035718,1767891041987,-1716.59998856,0.0001564,2]
[401035720,1767891041997,-166.66,0.0001572,2]
[401035723,1767891042008,-305.29924853,0.00015744,2]
[401035725,1767891042018,-1769.1,0.00015761,2]
[401035726,1767891042027,-157.72323008,0.00015845,2]
[401035728,1767891042036,-1500.0,0.00015858,2]
[401035731,1767891042046,-1500.0,0.00015858,2]
[401035732,1767891042055,-1500.0,0.00015858,2]
[401035735,1767891042065,-11007.72158634,0.00015874,2]
[401035737,1767891042075,-736.0,0.0001596,2]
[401035739,1767891042085,-3009.10701074,0.00015984,2]
[401035741,1767891042094,-500.0,0.00015999,2]
[401035742,1767891042103,-500.0,0.00015999,2]
[401035744,1767891042112,-322.08234913,0.00015999,2]
[401035746,1767891042121,-500.0,0.00015999,2]
[401035748,1767891042130,-500.0,0.00015999,2]
[401035750,1767891042140,-500.0,0.00015999,2]
[401035752,1767891042149,-500.0,0.00015999,2]
[401035754,1767891042158,-500.0,0.00015999,2]
[401035756,1767891042167,-166.66,0.00016037,2]